[Event "XTX Markets LCC Super Blitz-S2 2024"]
[Site "London"]
[Date "2024.12.07"]
[Round "2.2"]
[White "Firouzja, Alireza"]
[Black "Stefansson, Vignir Vatnar"]
[Result "1-0"]
[Annotator "TA"]
[ECO "A06"]
[WhiteElo "2763"]
[BlackElo "2537"]
[PlyCount "59"]
[EventDate "2024.11.28"]
[EventType "tourn"]
[EventCountry "ENG"]
[SourceTitle "playchess.com"]
[Source "ChessBase"]
[SourceQuality "1"]
[TimeControl "180+2"]

{[%evp 9,59,0,7,10,16,21,28,8,20,18,55,9,25,0,0,0,0,0,0,0,0,13,7,16,62,65,163,157,261,279,226,237,330,341,358,363,394,382,383,395,452,464,516,471,657,679,651,675,675,655,651,639]} 1. Nf3 {[%emt 0:00:01]} d5 {[%emt 0:03:04]} 2. b3 Nf6 {[%emt 0:00:00]} 3. Bb2 {[%emt 0:00:01]} e6 {[%emt 0:00:00]} 4. e3 {[%emt 0:00:01]} c5 {[%emt 0:00:00]} 5. Be2 {[%emt 0:00:02]} Nc6 {[%emt 0:00:00]} 6. O-O {[%emt 0:00:02]} Bd6 {[%emt 0:00:00]} 7. d4 {[%emt 0:00:04]} O-O {[%emt 0:00:00]} 8. dxc5 {[%emt 0:00:04] White has an edge.} Bxc5 {[%emt 0:00:00]} 9. a3 {[%emt 0:00:01]} a5 {[%emt 0:00:00]} 10. Nbd2 {[%emt 0:00:08]} (10. Nc3 $14 {deserves consideration.}) 10... b6 $11 {[%emt 0:00:00]} 11. c3 {[%emt 0:00:15]} Bb7 {[%emt 0:00:00]} 12. b4 {[%emt 0:00:01]} Bd6 {[%emt 0:00:00]} 13. b5 {[%emt 0:00:05]} Ne5 {[%emt 0:00:00]} 14. c4 {[%emt 0:00:00]} Nxc4 {[%emt 0:00:00]} 15. Bxc4 {[%emt 0:00:04]} dxc4 {[%emt 0:00:00]} 16. Nxc4 {[%emt 0:00:01]} Ne4 {[%emt 0:00:00]} (16... Bc5 $11 {should be considered.}) 17. Qd4 $14 {[%emt 0:00:08][%csl Gb2][%cal Rd4g7] [#]} e5 {[%emt 0:00:00]} 18. Qxb6 $18 {[%emt 0:00:15]} (18. Ncxe5 Bc5 19. Qd7 Bd5) 18... Qxb6 {[%emt 0:00:00]} (18... Bd5 $16 {was called for.} 19. Qxd8 (19. Nfxe5 Bxe5 20. Qxd8 Rfxd8 $18) 19... Raxd8 20. Nxd6 (20. Ncxe5 f6 $14) 20... Nxd6) 19. Nxb6 {[%emt 0:00:02] Excellent horsemanship.} Rad8 {[%emt 0:00:00]} 20. Nxe5 {[%emt 0:00:05]} Bxe5 {[%emt 0:00:00]} 21. Bxe5 {[%emt 0:00:02]} Rfe8 {[%emt 0:00:00]} 22. Rfd1 {[%emt 0:00:08]} Rd2 {[%emt 0:00:18]} (22... Rxd1+ 23. Rxd1 h5 24. Bd4 $18) 23. Rxd2 {[%emt 0:00:20]} Nxd2 {[%emt 0:00:00]} 24. Bc3 {[%emt 0:00:08][%csl LRa5,LRd2]} Nb3 {[%emt 0:00:04]} 25. Rb1 {[%emt 0:00:04] White is clearly winning.} Rd8 {[%emt 0:00:06]} 26. h3 {[%emt 0:00:07]} (26. Rxb3 $2 {gets mated.} Rd1+) 26... Nd2 {[%emt 0:00:04]} 27. Bxd2 {[%emt 0:00:04]} ({Stronger than} 27. Rd1 Nf3+ 28. gxf3 Rxd1+ 29. Kg2 Rd3 30. Bxa5 Rxa3 $17) 27... Rxd2 {[%emt 0:00:01]} 28. Nc4 {[%emt 0:00:01][%csl LRa5,LRd2]} Ra2 {[%emt 0:00:02]} 29. Nxa5 {[%emt 0:00:01]} Be4 {[%emt 0:00:01]} 30. Rb4 {[%emt 0:00:02] Weighted Error Value: White=0.06 (flawless) /Black=0.38.  Mistake:       	White=1     	Black=3      Inaccurate:     	---       	Black=3      OK:         	White=13    	Black=4} 1-0

[Event "XTX Markets LCC Super Blitz-S2 2024"]
[Site "London"]
[Date "2024.12.07"]
[Round "2.3"]
[White "Vidit, Santosh Gujrathi"]
[Black "Adams, Michael"]
[Result "1-0"]
[Annotator "ChessBase"]
[ECO "C54"]
[WhiteElo "2727"]
[BlackElo "2662"]
[PlyCount "63"]
[EventDate "2024.11.28"]
[EventType "tourn"]
[EventCountry "ENG"]
[SourceTitle "playchess.com"]
[Source "ChessBase"]
[SourceQuality "1"]
[TimeControl "180+2"]

1. e4 {[%emt 0:00:02]} e5 {[%emt 0:00:01]} 2. Nf3 {[%emt 0:00:01]} Nc6 {[%emt 0:00:01]} 3. Bc4 {[%emt 0:00:02]} Nf6 {[%emt 0:00:03]} 4. d3 {[%emt 0:00:01]} Bc5 {[%emt 0:00:01]} 5. O-O {[%emt 0:00:04]} d6 {[%emt 0:00:01]} 6. c3 {[%emt 0:00:02]} h6 {[%emt 0:00:02]} 7. Re1 {[%emt 0:00:01]} O-O {[%emt 0:00:03]} 8. Nbd2 {[%emt 0:00:03]} Bb6 {[%emt 0:00:01]} 9. Bb3 {[%emt 0:00:03]} a5 {[%emt 0:00:01]} 10. Nf1 {[%emt 0:00:06]} Be6 {[%emt 0:00:01]} 11. Bxe6 {[%emt 0:00:07]} fxe6 {[%emt 0:00:01]} 12. Be3 {[%emt 0:00:04]} Bxe3 {[%emt 0:00:04]} 13. Rxe3 {[%emt 0:00:03]} a4 {[%emt 0:00:04]} 14. Ng3 {[%emt 0:00:07]} Qe8 {[%emt 0:00:07]} 15. d4 {[%emt 0:00:01]} Nd7 {[%emt 0:00:11]} 16. Rc1 {[%emt 0:00:05]} Qf7 {[%emt 0:00:02]} 17. h3 {[%emt 0:00:05]} Kh8 {[%emt 0:00:02]} 18. Qc2 {[%emt 0:00:07]} Qf6 {[%emt 0:00:04]} 19. Rd1 {[%emt 0:00:03]} Nb6 {[%emt 0:00:07]} 20. Qe2 {[%emt 0:00:06]} Rf7 {[%emt 0:00:05]} 21. dxe5 {[%emt 0:00:08]} Nxe5 {[%emt 0:00:01]} 22. Nh5 {[%emt 0:00:05]} Nxf3+ 23. Rxf3 {[%emt 0:00:02]} Qe7 {[%emt 0:00:19]} 24. Nf4 {[%emt 0:00:09]} Kg8 {[%emt 0:00:02]} 25. e5 {[%emt 0:00:08]} d5 {[%emt 0:00:03]} 26. Ng6 {[%emt 0:00:07]} Qe8 {[%emt 0:00:21]} 27. Rg3 {[%emt 0:00:01]} Nd7 {[%emt 0:00:01]} 28. Rd4 {[%emt 0:00:04]} Nf8 {[%emt 0:00:20]} 29. Rdg4 {[%emt 0:00:03]} Nxg6 {[%emt 0:00:09]} 30. Rxg6 {[%emt 0:00:02]} Kf8 {[%emt 0:00:15]} 31. Qg4 {[%emt 0:00:04]} Ra6 {[%emt 0:00:00]} 32. Rxg7 {[%emt 0:00:03]} 1-0

[Event "XTX Markets LCC Super Blitz-S2 2024"]
[Site "London"]
[Date "2024.12.07"]
[Round "2.4"]
[White "Smirin, Ilia"]
[Black "Vitiugov, Nikita"]
[Result "0-1"]
[Annotator "ChessBase"]
[ECO "C07"]
[WhiteElo "2574"]
[BlackElo "2668"]
[PlyCount "73"]
[EventDate "2024.11.28"]
[EventType "tourn"]
[EventCountry "ENG"]
[SourceTitle "playchess.com"]
[Source "ChessBase"]
[SourceQuality "1"]
[TimeControl "180+2"]

1. e4 {[%emt 0:00:02]} e6 {[%emt 0:00:05]} 2. d4 {[%emt 0:00:02]} d5 {[%emt 0:00:01]} 3. Nd2 {[%emt 0:00:01]} c5 {[%emt 0:00:02]} 4. Ngf3 {[%emt 0:00:03]} cxd4 {[%emt 0:00:04]} 5. Nxd4 {[%emt 0:00:02]} Nc6 {[%emt 0:00:01]} 6. Bb5 {[%emt 0:00:06]} Bd7 {[%emt 0:00:02]} 7. Bxc6 {[%emt 0:00:03]} bxc6 {[%emt 0:00:02]} 8. O-O {[%emt 0:00:03]} Ne7 {[%emt 0:00:08]} 9. Re1 {[%emt 0:00:15]} Ng6 {[%emt 0:00:04]} 10. exd5 {[%emt 0:00:26]} cxd5 {[%emt 0:00:02]} 11. N2f3 {[%emt 0:00:02]} Be7 {[%emt 0:00:04]} 12. b3 {[%emt 0:00:09]} O-O {[%emt 0:00:03]} 13. Bb2 {[%emt 0:00:01]} Bf6 {[%emt 0:00:11]} 14. Qd2 {[%emt 0:00:31]} e5 {[%emt 0:00:26]} 15. Ne2 {[%emt 0:00:02]} Bg4 {[%emt 0:00:02]} 16. Red1 {[%emt 0:00:27]} d4 {[%emt 0:00:15]} 17. Qd3 {[%emt 0:00:10]} Re8 {[%emt 0:00:08]} 18. Ng3 {[%emt 0:00:04]} Nh4 {[%emt 0:00:27]} 19. Qe4 {[%emt 0:00:21]} Bxf3 {[%emt 0:00:36]} 20. gxf3 {[%emt 0:00:01]} Qc8 {[%emt 0:00:02]} 21. Kh1 {[%emt 0:00:18]} Bg5 {[%emt 0:00:06]} 22. Ne2 {[%emt 0:00:08]} Qh3 {[%emt 0:00:07]} 23. Rg1 {[%emt 0:00:02]} Nxf3 {[%emt 0:00:13]} 24. Rg2 {[%emt 0:00:01]} Bf6 {[%emt 0:00:04]} 25. Ng3 {[%emt 0:00:14]} Ng5 {[%emt 0:00:08]} 26. Qf5 {[%emt 0:00:03]} Qxf5 {[%emt 0:00:07]} 27. Nxf5 {[%emt 0:00:02]} Rad8 {[%emt 0:00:09]} 28. Rag1 {[%emt 0:00:12]} Ne6 {[%emt 0:00:09]} 29. Nh6+ {[%emt 0:00:04]} Kf8 {[%emt 0:00:01]} 30. Ng4 {[%emt 0:00:01]} Ke7 {[%emt 0:00:04]} 31. Ba3+ {[%emt 0:00:02]} Kd7 {[%emt 0:00:00]} 32. Re1 {[%emt 0:00:03]} Nf4 {[%emt 0:00:02]} 33. Nxf6+ gxf6 {[%emt 0:00:01]} 34. Rg7 {[%emt 0:00:03]} Ke6 {[%emt 0:00:01]} 35. Rxh7 {[%emt 0:00:03]} Rc8 {[%emt 0:00:01]} 36. Rc1 {[%emt 0:00:02]} Ne2 {[%emt 0:00:01]} 37. Re1 {[%emt 0:00:07]} 0-1

[Event "XTX Markets LCC Super Blitz-S2 2024"]
[Site "London"]
[Date "2024.12.07"]
[Round "3.1"]
[White "Vitiugov, Nikita"]
[Black "Vachier-Lagrave, Maxime"]
[Result "0-1"]
[Annotator "ChessBase"]
[ECO "A45"]
[WhiteElo "2668"]
[BlackElo "2731"]
[PlyCount "100"]
[EventDate "2024.11.28"]
[EventType "tourn"]
[EventCountry "ENG"]
[SourceTitle "playchess.com"]
[Source "ChessBase"]
[SourceQuality "1"]
[TimeControl "180+2"]

1. d4 {[%emt 0:00:01]} Nf6 {[%emt 0:00:01]} 2. Bg5 {[%emt 0:00:01]} e6 {[%emt 0:00:04]} 3. Nd2 {[%emt 0:00:02]} c5 {[%emt 0:00:04]} 4. e3 {[%emt 0:00:02]} b6 {[%emt 0:00:02]} 5. Ne4 {[%emt 0:00:03]} Bb7 {[%emt 0:00:05]} 6. Nxf6+ {[%emt 0:00:12]} gxf6 {[%emt 0:00:01]} 7. Bh4 {[%emt 0:00:01]} Be7 {[%emt 0:00:16]} 8. Nf3 {[%emt 0:00:04]} d6 {[%emt 0:00:12]} 9. Be2 {[%emt 0:00:12]} Nd7 {[%emt 0:00:03]} 10. c4 {[%emt 0:00:04]} f5 {[%emt 0:00:03]} 11. Bg3 {[%emt 0:00:13]} Nf6 {[%emt 0:00:04]} 12. O-O {[%emt 0:00:09]} Ne4 {[%emt 0:00:08]} 13. Nd2 {[%emt 0:00:17]} Nxg3 {[%emt 0:00:12]} 14. hxg3 {[%emt 0:00:02]} Bf6 {[%emt 0:00:14]} 15. Bf3 {[%emt 0:00:04]} Qc7 {[%emt 0:00:04]} 16. Bxb7 {[%emt 0:00:05]} Qxb7 {[%emt 0:00:01]} 17. Nf3 {[%emt 0:00:02]} Ke7 {[%emt 0:00:02]} 18. Qe2 {[%emt 0:00:11]} h5 {[%emt 0:00:02]} 19. Rad1 {[%emt 0:00:10]} h4 {[%emt 0:00:12]} 20. gxh4 {[%emt 0:00:03]} Bxh4 {[%emt 0:00:04]} 21. d5 {[%emt 0:00:08]} Bf6 {[%emt 0:00:05]} 22. g3 {[%emt 0:00:03]} Rag8 {[%emt 0:00:11]} 23. Kg2 {[%emt 0:00:02]} Qc8 {[%emt 0:00:44]} 24. Rh1 {[%emt 0:00:12]} e5 {[%emt 0:00:04]} 25. b3 {[%emt 0:00:15]} e4 {[%emt 0:00:18]} 26. Nd2 {[%emt 0:00:11]} Be5 {[%emt 0:00:01]} 27. Rxh8 {[%emt 0:00:16]} Rxh8 {[%emt 0:00:02]} 28. Rh1 {[%emt 0:00:02]} Rxh1 {[%emt 0:00:01]} 29. Kxh1 {[%emt 0:00:01]} Qh8+ {[%emt 0:00:12]} 30. Kg2 {[%emt 0:00:01]} a6 {[%emt 0:00:02]} 31. Nf1 {[%emt 0:00:17]} Kd7 {[%emt 0:00:04]} 32. a4 {[%emt 0:00:04]} Bc3 {[%emt 0:00:04]} 33. g4 {[%emt 0:00:11]} Qg7 {[%emt 0:00:11]} 34. Ng3 {[%emt 0:00:15]} fxg4 {[%emt 0:00:01]} 35. Nxe4 {[%emt 0:00:01]} Be5 {[%emt 0:00:02]} 36. Ng3 {[%emt 0:00:05]} Bxg3 {[%emt 0:00:02]} 37. Kxg3 {[%emt 0:00:01]} f5 {[%emt 0:00:01]} 38. Qd3 {[%emt 0:00:04]} Qe5+ {[%emt 0:00:02]} 39. Kg2 {[%emt 0:00:01]} Ke7 {[%emt 0:00:03]} 40. Qb1 {[%emt 0:00:06]} Kf6 {[%emt 0:00:02]} 41. Qd1 {[%emt 0:00:02]} Qe4+ {[%emt 0:00:05]} 42. Kg3 {[%emt 0:00:02]} Kg5 {[%emt 0:00:02]} 43. Qe2 {[%emt 0:00:05]} Qh1 {[%emt 0:00:03]} 44. f4+ {[%emt 0:00:03]} Kg6 {[%emt 0:00:03]} 45. Qg2 {[%emt 0:00:02]} Qxg2+ {[%emt 0:00:06]} 46. Kxg2 {[%emt 0:00:01]} Kh5 {[%emt 0:00:01]} 47. Kg3 {[%emt 0:00:01]} a5 {[%emt 0:00:01]} 48. Kg2 {[%emt 0:00:04]} Kh4 {[%emt 0:00:01]} 49. Kh2 {[%emt 0:00:01]} g3+ {[%emt 0:00:01]} 50. Kg2 {[%emt 0:00:01]} Kg4 {[%emt 0:00:01]} 0-1

[Event "XTX Markets LCC Super Blitz-S2 2024"]
[Site "London"]
[Date "2024.12.07"]
[Round "3.2"]
[White "Adams, Michael"]
[Black "Smirin, Ilia"]
[Result "0-1"]
[Annotator "ChessBase"]
[ECO "C09"]
[WhiteElo "2662"]
[BlackElo "2574"]
[PlyCount "100"]
[EventDate "2024.11.28"]
[EventType "tourn"]
[EventCountry "ENG"]
[SourceTitle "playchess.com"]
[Source "ChessBase"]
[SourceQuality "1"]
[TimeControl "180+2"]

1. e4 {[%emt 0:00:01]} c5 {[%emt 0:00:01]} 2. Nf3 {[%emt 0:00:02]} e6 {[%emt 0:00:01]} 3. c3 {[%emt 0:00:02]} d5 {[%emt 0:00:05]} 4. exd5 {[%emt 0:00:01]} exd5 {[%emt 0:00:02]} 5. d4 {[%emt 0:00:01]} Nc6 {[%emt 0:00:01]} 6. Bb5 {[%emt 0:00:03]} Bd6 {[%emt 0:00:02]} 7. O-O {[%emt 0:00:03]} Nge7 {[%emt 0:00:01]} 8. dxc5 {[%emt 0:00:02]} Bxc5 {[%emt 0:00:02]} 9. Nbd2 {[%emt 0:00:01]} O-O {[%emt 0:00:02]} 10. Nb3 {[%emt 0:00:01]} Bd6 {[%emt 0:00:03]} 11. h3 {[%emt 0:00:11]} h6 {[%emt 0:00:06]} 12. Re1 {[%emt 0:00:01]} Bf5 {[%emt 0:00:10]} 13. Bd3 {[%emt 0:00:02]} Qd7 {[%emt 0:00:05]} 14. Bxf5 {[%emt 0:00:06]} Nxf5 {[%emt 0:00:05]} 15. Qd3 {[%emt 0:00:03]} Rfe8 {[%emt 0:00:10]} 16. Bd2 {[%emt 0:00:02]} Re6 {[%emt 0:00:15]} 17. Rxe6 {[%emt 0:00:09]} fxe6 {[%emt 0:00:05]} 18. Re1 {[%emt 0:00:04]} Rf8 {[%emt 0:00:04]} 19. c4 {[%emt 0:00:20]} Nfe7 {[%emt 0:00:32]} 20. cxd5 {[%emt 0:00:11]} exd5 {[%emt 0:00:04]} 21. Bc3 {[%emt 0:00:11]} Qf5 {[%emt 0:00:04]} 22. Qxf5 {[%emt 0:00:05]} Nxf5 {[%emt 0:00:02]} 23. Rd1 {[%emt 0:00:07]} Rd8 {[%emt 0:00:05]} 24. Kf1 {[%emt 0:00:02]} Nfe7 {[%emt 0:00:09]} 25. Nbd4 {[%emt 0:00:04]} Kf7 {[%emt 0:00:06]} 26. Rd3 {[%emt 0:00:07]} a6 {[%emt 0:00:07]} 27. a3 {[%emt 0:00:12]} Bc5 {[%emt 0:00:11]} 28. Ne2 {[%emt 0:00:15]} Nf5 {[%emt 0:00:14]} 29. g4 {[%emt 0:00:02]} Nfe7 {[%emt 0:00:01]} 30. h4 {[%emt 0:00:05]} Bb6 {[%emt 0:00:20]} 31. h5 {[%emt 0:00:02]} g6 {[%emt 0:00:13]} 32. hxg6+ {[%emt 0:00:15]} Nxg6 {[%emt 0:00:02]} 33. Bd2 {[%emt 0:00:01]} Nce5 {[%emt 0:00:06]} 34. Nxe5+ {[%emt 0:00:02]} Nxe5 {[%emt 0:00:01]} 35. Rb3 {[%emt 0:00:00]} Nc4 {[%emt 0:00:04]} 36. Bxh6 {[%emt 0:00:13]} Rh8 {[%emt 0:00:01]} 37. Bf4 {[%emt 0:00:09]} Rh4 {[%emt 0:00:13]} 38. f3 {[%emt 0:00:20]} Rh1+ {[%emt 0:00:02]} 39. Kg2 {[%emt 0:00:01]} Rd1 {[%emt 0:00:10]} 40. Nc3 {[%emt 0:00:13]} Rd3 {[%emt 0:00:01]} 41. Rb4 {[%emt 0:00:01]} a5 {[%emt 0:00:06]} 42. Rb5 {[%emt 0:00:00]} d4 {[%emt 0:00:04]} 43. Nd5 {[%emt 0:00:02]} Bd8 {[%emt 0:00:02]} 44. Rxb7+ {[%emt 0:00:04]} Ke6 {[%emt 0:00:01]} 45. Nc7+ {[%emt 0:00:02]} Bxc7 {[%emt 0:00:01]} 46. Rxc7 {[%emt 0:00:01]} Nxb2 {[%emt 0:00:02]} 47. Rc5 {[%emt 0:00:05]} Rxa3 {[%emt 0:00:04]} 48. Be5 {[%emt 0:00:02]} Nd3 {[%emt 0:00:01]} 49. Bxd4 {[%emt 0:00:16]} Nxc5 {[%emt 0:00:01]} 50. Bxc5 {[%emt 0:00:01]} Rb3 {[%emt 0:00:01]} 0-1

[Event "XTX Markets LCC Super Blitz-S2 2024"]
[Site "London"]
[Date "2024.12.07"]
[Round "3.3"]
[White "Stefansson, Vignir Vatnar"]
[Black "Vidit, Santosh Gujrathi"]
[Result "1/2-1/2"]
[Annotator "ChessBase"]
[ECO "D14"]
[WhiteElo "2537"]
[BlackElo "2727"]
[PlyCount "116"]
[EventDate "2024.11.28"]
[EventType "tourn"]
[EventCountry "ENG"]
[SourceTitle "playchess.com"]
[Source "ChessBase"]
[SourceQuality "1"]
[TimeControl "180+2"]

1. d4 {[%emt 0:00:01]} d5 {[%emt 0:00:01]} 2. c4 {[%emt 0:00:00]} c6 {[%emt 0:00:01]} 3. cxd5 {[%emt 0:00:02]} cxd5 {[%emt 0:00:01]} 4. Nc3 {[%emt 0:00:01]} Nf6 {[%emt 0:00:03]} 5. Bf4 {[%emt 0:00:01]} Nc6 {[%emt 0:00:02]} 6. e3 {[%emt 0:00:01]} Bf5 {[%emt 0:00:05]} 7. Nf3 {[%emt 0:00:01]} e6 {[%emt 0:00:04]} 8. Qb3 {[%emt 0:00:01]} Bb4 {[%emt 0:00:10]} 9. Ne5 {[%emt 0:00:01]} Bxc3+ {[%emt 0:00:10]} 10. Qxc3 {[%emt 0:00:01]} Nxe5 {[%emt 0:00:07]} 11. Bxe5 {[%emt 0:00:01]} O-O {[%emt 0:00:02]} 12. Be2 {[%emt 0:00:04]} Rc8 {[%emt 0:00:15]} 13. Qa3 {[%emt 0:00:01]} a6 {[%emt 0:00:24]} 14. O-O {[%emt 0:00:14]} Rc6 {[%emt 0:00:09]} 15. Rac1 {[%emt 0:00:38]} Qd7 {[%emt 0:00:03]} 16. Rc5 {[%emt 0:00:19]} Ne4 {[%emt 0:00:14]} 17. Rxc6 {[%emt 0:00:12]} Qxc6 {[%emt 0:00:01]} 18. f3 {[%emt 0:00:15]} Nd2 {[%emt 0:00:08]} 19. Rd1 {[%emt 0:00:01]} Qc2 {[%emt 0:00:40]} 20. Qc3 {[%emt 0:00:08]} Qxc3 {[%emt 0:00:05]} 21. bxc3 {[%emt 0:00:00]} Nb1 {[%emt 0:00:09]} 22. Rc1 {[%emt 0:00:07]} Rc8 {[%emt 0:00:08]} 23. c4 {[%emt 0:00:11]} Na3 {[%emt 0:00:15]} 24. c5 {[%emt 0:00:01]} Bg6 {[%emt 0:00:03]} 25. Rc3 {[%emt 0:00:05]} Nb5 {[%emt 0:00:11]} 26. Bxb5 {[%emt 0:00:03]} axb5 {[%emt 0:00:00]} 27. Rb3 {[%emt 0:00:01]} f6 {[%emt 0:00:02]} 28. Bd6 {[%emt 0:00:09]} Be8 {[%emt 0:00:01]} 29. Ra3 {[%emt 0:00:30]} Bc6 {[%emt 0:00:01]} 30. Kf2 {[%emt 0:00:01]} Kf7 {[%emt 0:00:04]} 31. Ke2 {[%emt 0:00:01]} g5 {[%emt 0:00:05]} 32. Rb3 {[%emt 0:00:15]} Ra8 {[%emt 0:00:02]} 33. a3 {[%emt 0:00:00]} h5 {[%emt 0:00:02]} 34. Kd3 {[%emt 0:00:01]} Re8 {[%emt 0:00:03]} 35. g3 {[%emt 0:00:16]} e5 {[%emt 0:00:03]} 36. dxe5 {[%emt 0:00:02]} fxe5 {[%emt 0:00:01]} 37. f4 {[%emt 0:00:01]} exf4 {[%emt 0:00:06]} 38. exf4 {[%emt 0:00:07]} gxf4 {[%emt 0:00:03]} 39. Bxf4 {[%emt 0:00:01]} Re4 {[%emt 0:00:01]} 40. Rb2 {[%emt 0:00:03]} Ra4 {[%emt 0:00:02]} 41. Rb3 {[%emt 0:00:01]} Ke6 {[%emt 0:00:02]} 42. Bd2 {[%emt 0:00:03]} Ra8 {[%emt 0:00:06]} 43. Bb4 {[%emt 0:00:05]} Rf8 {[%emt 0:00:00]} 44. Ke2 {[%emt 0:00:01]} d4 {[%emt 0:00:02]} 45. Rb1 {[%emt 0:00:06]} Rf7 {[%emt 0:00:06]} 46. Rf1 {[%emt 0:00:06]} d3+ {[%emt 0:00:06]} 47. Ke1 {[%emt 0:00:00]} Rxf1+ 48. Kxf1 {[%emt 0:00:01]} Kf5 {[%emt 0:00:04]} 49. Kf2 {[%emt 0:00:04]} Ke4 {[%emt 0:00:01]} 50. h4 {[%emt 0:00:09]} Bd7 {[%emt 0:00:01]} 51. Bd2 {[%emt 0:00:02]} Bg4 {[%emt 0:00:01]} 52. Bb4 {[%emt 0:00:01]} Kd4 {[%emt 0:00:00]} 53. Bd2 {[%emt 0:00:05]} Kxc5 {[%emt 0:00:02]} 54. Ke3 {[%emt 0:00:00]} Kc4 {[%emt 0:00:01]} 55. Bb4 {[%emt 0:00:01]} Be2 {[%emt 0:00:02]} 56. Kd2 {[%emt 0:00:01]} Bg4 {[%emt 0:00:02]} 57. Ke3 {[%emt 0:00:01]} Be2 {[%emt 0:00:01]} 58. Kd2 {[%emt 0:00:00]} Bg4 {[%emt 0:00:01]} 1/2-1/2

[Event "XTX Markets LCC Super Blitz-S2 2024"]
[Site "London"]
[Date "2024.12.07"]
[Round "3.4"]
[White "Jones, Gawain C B"]
[Black "Firouzja, Alireza"]
[Result "0-1"]
[Annotator "TA"]
[ECO "D02"]
[WhiteElo "2639"]
[BlackElo "2763"]
[PlyCount "118"]
[EventDate "2024.11.28"]
[EventType "tourn"]
[EventCountry "ENG"]
[SourceTitle "playchess.com"]
[Source "ChessBase"]
[SourceQuality "1"]
[TimeControl "180+2"]

{[%evp 12,118,16,10,93,86,85,81,133,139,146,161,154,78,83,72,82,85,90,0,1,-90,-87,-101,-109,-104,-113,-91,-102,-392,-372,-370,-385,-407,-421,-398,-420,-420,-415,-403,-426,-420,-424,-399,-399,-385,-376,-373,-377,-386,-383,-387,-385,-378,-327,-439,-451,-506,-471,-575,-572,-613,-564,-564,-608,-797,-816,-1088,-1026,-1096,-1093,-1011,-1040,-1284,-1312,-1291,-1273,-1417,-1396,-8179,-7448,-5631,-5074,-2859,-2196,-1671,-1274,-29974,-29974,-29982,-29983,-2050,-1210,-29987,-29988,-29984,-29974,-29988,-29988,-29988,-29986,-29988,-29989,-29989,-29990,-29990,-29991,-29991,-29991]} 1. Nf3 {[%emt 0:00:01]} Nf6 {[%emt 0:00:02]} 2. g3 {[%emt 0:00:01]} d6 {[%emt 0:00:04][%cal Bd7d6,Bd6d5][%mdl 32]} 3. d4 {[%emt 0:00:06]} c5 {[%emt 0:00:04]} 4. Bg2 {[%emt 0:00:07]} cxd4 5. Nxd4 {[%emt 0:00:02]} d5 {[%emt 0:00:17]} 6. O-O {[%emt 0:00:05]} e5 {[%emt 0:00:17]} 7. Nb3 {[%emt 0:00:01]} h6 {[%emt 0:00:07] [#]} (7... Be6 $11) 8. c4 $1 $16 {[%emt 0:00:07]} d4 {[%emt 0:00:26]} 9. e3 {[%emt 0:00:03]} Nc6 {[%emt 0:00:01]} (9... d3 $142) 10. exd4 exd4 {[%emt 0:00:01] [#]} 11. Bxc6+ $1 {[%emt 0:00:12]} bxc6 {[%emt 0:00:01]} 12. Qxd4 {[%emt 0:00:02]} (12. Nxd4 $142 {Strongly threatening Qe1+.} Bd7 13. Qf3) 12... Be6 {[%emt 0:00:08]} 13. Re1 {[%emt 0:00:11]} Be7 {[%emt 0:00:13]} 14. Qxd8+ {[%emt 0:00:05]} Rxd8 {[%emt 0:00:01]} 15. N3d2 {[%emt 0:00:11]} ({White should play} 15. Bd2 $16) 15... O-O {[%emt 0:00:05]} 16. b3 {[%emt 0:00:05]} (16. Nf3 $11 {remains equal.}) 16... Rfe8 $17 {[%emt 0:00:35] Black is more active.} 17. Bb2 {[%emt 0:00:21]} Bb4 {[%emt 0:00:08]} 18. Re2 {[%emt 0:00:02] White is weak on the light squares} Bh3 $40 {[%emt 0:00:18][%mdl 128] Black wants a kill.} 19. Rxe8+ {[%emt 0:00:04]} Nxe8 {[%emt 0:00:02]} ({But not} 19... Rxe8 20. Nc3) 20. Bc1 $2 {[%emt 0:00:09][%mdl 8192] This costs White the game.} (20. Nf1 $17) 20... Nf6 {[%emt 0:00:07]} 21. a3 {[%emt 0:00:18]} Bc5 {[%emt 0:00:09]} 22. b4 {[%emt 0:00:31]} Bd4 {[%emt 0:00:12]} 23. Ra2 {[%emt 0:00:01]} Ng4 {[%emt 0:00:06]} 24. Ne4 {[%emt 0:00:11]} f5 {[%emt 0:00:10]} 25. Nec3 {[%emt 0:00:05]} Re8 {[%emt 0:00:06]} 26. Re2 {[%emt 0:00:08]} Bxf2+ {[%emt 0:00:01] A strong pair of Bishops.} 27. Kh1 {[%emt 0:00:01]} Rd8 {[%emt 0:00:01]} 28. Nd2 {[%emt 0:00:12]} Bd4 {[%emt 0:00:07]} 29. Nd1 {[%emt 0:00:05]} Ne5 {[%emt 0:00:06] Prevents Nf3} 30. Bb2 {[%emt 0:00:21]} Bg4 {[%emt 0:00:01]} 31. Bxd4 {[%emt 0:00:08]} Bxe2 {[%emt 0:00:01]} 32. Bxe5 {[%emt 0:00:01]} Rxd2 $19 {[%emt 0:00:04][%mdl 4096] Endgame. KRB-KBN} 33. Nc3 {[%emt 0:00:03]} Bxc4 {[%emt 0:00:02]} 34. h4 {[%emt 0:00:03]} g5 {[%emt 0:00:01]} 35. hxg5 {[%emt 0:00:09]} hxg5 {[%emt 0:00:01]} 36. Bf6 {[%emt 0:00:00]} g4 {[%emt 0:00:02]} 37. Be5 {[%emt 0:00:00]} Kf7 {[%emt 0:00:01]} 38. Kg1 {[%emt 0:00:00]} Ke6 {[%emt 0:00:02]} 39. Bf4 {[%emt 0:00:01]} Rd3 {[%emt 0:00:01]} 40. Na4 {[%emt 0:00:02]} Rxa3 {[%emt 0:00:02]} 41. Nc5+ {[%emt 0:00:01]} Kd5 {[%emt 0:00:01] ...Ra1+ is the strong threat.} 42. Nd7 {[%emt 0:00:05]} Ra2 {[%emt 0:00:02]} 43. Nf6+ {[%emt 0:00:04]} Kd4 {[%emt 0:00:01]} 44. Nd7 {[%emt 0:00:01]} Bd5 {[%emt 0:00:01]} 45. Ne5 {[%emt 0:00:02]} Rb2 {[%emt 0:00:06]} 46. Nd7 {[%emt 0:00:03]} Rxb4 {[%emt 0:00:02]} 47. Kf2 {[%emt 0:00:01]} Rb2+ {[%emt 0:00:01]} 48. Ke1 {[%emt 0:00:00]} Rh2 {[%emt 0:00:02]} 49. Kd1 {[%emt 0:00:01]} a5 {[%emt 0:00:01]} 50. Kc1 {[%emt 0:00:02]} a4 {[%emt 0:00:01]} 51. Bd6 {[%emt 0:00:01]} Be4 {[%emt 0:00:04] ( -> ...Kc3)} 52. Nb6 {[%emt 0:00:02]} Rc2+ {[%emt 0:00:03] Black mates.} 53. Kd1 {[%emt 0:00:00]} Ra2 {[%emt 0:00:00]} 54. Kc1 {[%emt 0:00:03]} c5 {[%emt 0:00:01]} 55. Nd7 {[%emt 0:00:01]} c4 {[%emt 0:00:02]} 56. Be5+ {[%emt 0:00:01]} Ke3 {[%emt 0:00:02]} 57. Nc5 {[%emt 0:00:01] [#]} c3 $1 {[%emt 0:00:01][%cal Ra2a1]} 58. Nxe4 {[%emt 0:00:06]} fxe4 {[%emt 0:00:02]} 59. Bxc3 {[%emt 0:00:01]} Kd3 {[%emt 0:00:02] Weighted Error Value: White=0.47/Black=0.11 (very precise) .  Loses game:     	White=1     	---        Mistake:       	White=3     	Black=1      Inaccurate:     	White=2     	---        OK:         	White=15    	Black=14     Best:        	White=3     	Black=6      Brilliant:      	White=1     	---} 0-1